bitfinex/quotes_BTCUSD_20220120
["timestamp","ask_amount","ask_price","bid_price","bid_amount"]
[1642691780953,1.83054828,43186.0,43181.0,0.00115764]
[1642691780954,1.25,43185.0,43181.0,0.00115764]
[1642691781150,0.00123454,43182.0,43162.0,0.29]
[1642691781351,0.28715284,43176.0,43162.0,0.29]
[1642691781549,0.74848747,43175.0,43170.0,0.00488955]
[1642691781746,0.43034461,43175.0,43170.0,0.00488955]
[1642691781945,0.43034461,43175.0,43171.0,0.00024066]
[1642691781946,0.84848747,43175.0,43171.0,0.00024066]
[1642691782149,0.85448747,43175.0,43171.0,0.00024066]
[1642691782490,0.15810041,43174.0,43171.0,0.00024066]
[1642691782698,0.4468027,43173.0,43171.0,0.00139622]
[1642691782891,0.4468027,43173.0,43171.0,0.00115556]
[1642691782892,1.62736402,43172.0,43171.0,0.00115556]
[1642691783091,0.05922116,43172.0,43171.0,0.00115556]
[1642691783392,0.1,43179.0,43171.0,0.00115556]
[1642691783594,0.97472993,43183.0,43171.0,0.00565304]
[1642691783595,0.96386302,43183.0,43171.0,0.00565304]
[1642691783889,0.00126302,43183.0,43172.0,0.00022347]
[1642691784091,0.1796219,43178.0,43173.0,0.06318157]
[1642691784294,0.18085754,43178.0,43173.0,0.05793635]
[1642691784490,0.01210255,43178.0,43174.0,0.00018909]
[1642691785293,0.33024541,43178.0,43174.0,0.00018909]
[1642691785493,0.20652079,43177.0,43174.0,0.00018909]
[1642691785694,1.31881691,43175.0,43174.0,0.00018909]
[1642691785896,1.25,43174.0,43173.0,0.02419708]
[1642691786103,0.18140617,43170.0,43162.0,0.057965]
[1642691786339,0.18140617,43170.0,43152.0,0.4411]
[1642691786340,0.43397243,43168.0,43167.0,0.00462463]
[1642691786543,0.63748243,43168.0,43167.0,0.00462463]
[1642691786742,0.84037215,43168.0,43167.0,0.00462463]
[1642691786940,1.05521575,43168.0,43167.0,0.00462463]
[1642691787243,1.05521575,43168.0,43164.0,0.00021082]
[1642691787244,0.20678034,43167.0,43164.0,0.00021082]
[1642691787441,0.20678034,43167.0,43163.0,0.00018909]
[1642691787648,0.20678034,43167.0,43156.0,0.09938392]
[1642691787649,0.7,43166.0,43156.0,0.09938392]
[1642691787842,0.057959,43165.0,43163.0,0.05796169]
[1642691788042,0.1,43166.0,43163.0,0.05796169]
[1642691788443,0.004,43167.0,43164.0,0.03803476]
[1642691788444,0.013284,43167.0,43164.0,0.03803476]
[1642691788747,0.004,43167.0,43163.0,0.10796169]
[1642691789142,0.004,43167.0,43164.0,0.03618739]
[1642691789342,0.05129264,43174.0,43164.0,0.03618739]
[1642691789545,0.05129264,43174.0,43166.0,0.05794662]
[1642691789742,0.20754777,43172.0,43166.0,0.05794662]
[1642691790014,0.00010314,43171.0,43170.0,0.04004337]
[1642691790212,0.00010314,43171.0,43163.0,0.00119059]
[1642691790411,0.057963,43169.0,43163.0,0.00119059]
[1642691790914,0.057963,43169.0,43163.0,0.03296119]
[1642691791112,0.55691727,43165.0,43164.0,0.03456899]
[1642691791317,0.20811766,43168.0,43164.0,0.00119058]
[1642691791511,0.1,43165.0,43164.0,0.00119058]
[1642691791711,0.157963,43165.0,43164.0,0.00119058]
[1642691792113,0.162963,43165.0,43163.0,0.03799039]
[1642691792412,0.08895619,43165.0,43162.0,0.05915339]
[1642691792614,0.29960604,43165.0,43162.0,0.00119061]
[1642691792814,0.057965,43164.0,43162.0,0.00119061]
[1642691793024,0.057965,43164.0,43162.0,0.05915311]
[1642691793213,0.057965,43164.0,43162.0,0.0579625]
[1642691793843,0.057965,43164.0,43162.0,0.1159215]
[1642691794041,0.061965,43164.0,43162.0,0.1659215]
[1642691795046,0.061965,43164.0,43162.0,0.1079625]
[1642691795248,0.061965,43164.0,43162.0,0.0579625]
[1642691795446,0.057965,43164.0,43163.0,0.05]
[1642691795845,0.057965,43164.0,43162.0,0.0579625]
[1642691796044,0.060965,43164.0,43162.0,0.0579625]
[1642691796450,0.070249,43164.0,43162.0,0.0579625]
[1642691796846,0.060965,43164.0,43162.0,0.0579625]
[1642691797049,0.29491412,43163.0,43161.0,0.16707808]
[1642691797246,0.060965,43164.0,43161.0,0.05115708]
[1642691797505,0.157965,43164.0,43161.0,0.00115708]
[1642691797698,0.157965,43164.0,43162.0,0.05795962]
[1642691797699,0.057965,43164.0,43162.0,0.05795962]
[1642691797896,0.11086691,43168.0,43162.0,0.05795962]
[1642691797897,0.37020722,43167.0,43162.0,0.05795962]
[1642691798101,0.003,43164.0,43162.0,0.17387862]
[1642691798297,0.003,43164.0,43162.0,0.22387862]
[1642691799700,0.003,43164.0,43162.0,0.21887862]
[1642691800101,0.005,43164.0,43162.0,0.20387862]
[1642691800501,0.002,43164.0,43162.0,0.20387862]
[1642691800703,0.1,43178.0,43164.0,1.307943]
[1642691800919,0.00634505,43180.0,43172.0,0.00129596]
[1642691800920,0.05,43179.0,43172.0,0.00129596]
[1642691801102,6.876e-05,43174.0,43173.0,0.8926]
[1642691801350,0.53658897,43175.0,43174.0,0.41946399]
[1642691801552,0.53658897,43175.0,43174.0,0.66294141]
[1642691801750,0.53658897,43175.0,43174.0,0.24347742]
[1642691801948,0.05,43179.0,43174.0,0.29347742]
[1642691802248,0.003,43175.0,43174.0,0.42044568]
[1642691802447,0.003,43175.0,43174.0,0.42034042]
[1642691802647,0.00038203,43180.0,43176.0,0.03551667]
[1642691802849,0.05,43184.0,43177.0,0.0426]
[1642691803049,0.00038204,43180.0,43178.0,0.0389378]
[1642691803247,0.00038204,43180.0,43179.0,0.08559729]
[1642691803446,0.00038204,43180.0,43179.0,0.0426]
[1642691804046,8.595e-05,43183.0,43179.0,0.0426]
[1642691804248,8.595e-05,43183.0,43179.0,0.165461]
[1642691804249,0.00966211,43182.0,43179.0,0.165461]
[1642691804452,0.00045087,43182.0,43179.0,0.165461]
[1642691804648,0.00045087,43182.0,43180.0,0.05]
[1642691804649,0.05838787,43182.0,43180.0,0.05]
[1642691805394,6.876e-05,43182.0,43180.0,0.10793186]
[1642691805891,6.876e-05,43182.0,43180.0,0.05793186]
[1642691806090,0.06100476,43182.0,43180.0,0.05993186]
[1642691806691,0.00306876,43182.0,43180.0,0.05993186]
[1642691806888,0.00306876,43182.0,43180.0,0.11786186]
[1642691807489,6.876e-05,43182.0,43180.0,0.16586186]
[1642691808189,0.01434976,43182.0,43180.0,0.16586186]
[1642691808391,0.00506876,43182.0,43180.0,0.05793186]
[1642691809243,0.01157,43181.0,43180.0,0.05793186]
[1642691809457,0.59351264,43182.0,43180.0,0.05793186]
[1642691809644,0.69351264,43182.0,43180.0,0.05793186]
[1642691810043,0.69351264,43182.0,43179.0,0.23183281]
[1642691810245,0.69951264,43182.0,43179.0,0.23183281]
[1642691810744,0.59451264,43182.0,43180.0,0.05]
[1642691811345,0.58844388,43181.0,43180.0,0.05]
[1642691811547,6.876e-05,43182.0,43180.0,0.45053089]
[1642691812148,0.00306876,43182.0,43180.0,0.45453089]
[1642691812603,0.00038212,43183.0,43182.0,1.25]
[1642691812806,0.01208905,43186.0,43183.0,0.8]
[1642691813009,0.05,43187.0,43184.0,0.0426]
[1642691813204,0.63844388,43187.0,43185.0,0.06989167]
[1642691813405,6.876e-05,43186.0,43185.0,0.12568145]
[1642691813603,6.876e-05,43186.0,43185.0,0.16249167]
[1642691814104,0.58844388,43189.0,43185.0,0.2803208]
[1642691814408,0.05,43190.0,43185.0,0.28736636]
[1642691814409,0.006,43186.0,43185.0,0.28736636]
[1642691814605,0.05,43190.0,43186.0,0.9]
[1642691814809,0.05,43190.0,43187.0,0.0426]
[1642691815004,0.05,43190.0,43189.0,0.19126221]
[1642691815204,0.05,43190.0,43189.0,0.23386221]
[1642691815505,0.05006876,43190.0,43189.0,0.23386221]
[1642691815905,0.05006876,43190.0,43189.0,0.0426]
[1642691816109,0.05006876,43190.0,43183.0,0.11593626]
[1642691816110,0.09457294,43187.0,43183.0,0.11593626]
[1642691816349,0.68795902,43185.0,43182.0,0.00010526]
[1642691816548,0.58966129,43184.0,43181.0,0.057936]
[1642691816945,0.58966129,43184.0,43182.0,6.876e-05]
[1642691817147,0.58966129,43183.0,43182.0,6.876e-05]
[1642691817545,0.58966129,43183.0,43182.0,0.00715089]
[1642691817744,0.58966129,43183.0,43182.0,6.876e-05]
[1642691818146,0.70066129,43183.0,43182.0,0.05206876]
[1642691818550,0.111,43183.0,43182.0,0.05206876]
[1642691818747,0.461,43183.0,43182.0,0.05206876]
[1642691819346,0.461,43183.0,43182.0,0.28206876]
[1642691819547,0.1,43183.0,43182.0,0.28006876]
[1642691819747,0.68795902,43184.0,43182.0,0.28006876]
[1642691820019,0.11016913,43183.0,43182.0,0.28006876]
[1642691820219,0.11616913,43183.0,43182.0,0.28006876]
[1642691820422,0.006,43183.0,43182.0,0.28006876]
[1642691820622,0.00037996,43185.0,43183.0,0.6]
[1642691820820,0.06562607,43185.0,43184.0,1.1926]
[1642691821021,0.06562607,43185.0,43184.0,1.568706]
[1642691821022,0.00037996,43185.0,43184.0,1.568706]
[1642691821518,0.09457294,43187.0,43185.0,0.4]
[1642691821720,0.09457294,43187.0,43186.0,0.0426]
[1642691821918,0.09457294,43187.0,43186.0,0.25439251]
[1642691822321,0.05006876,43190.0,43187.0,0.4]
[1642691822523,0.73802778,43190.0,43187.0,0.73956197]
[1642691822719,0.73802778,43190.0,43187.0,0.92994932]
[1642691822920,6.876e-05,43190.0,43187.0,1.07994932]
[1642691823224,0.68795902,43193.0,43187.0,1.07994932]
[1642691823225,0.68795902,43193.0,43189.0,1.25121625]
[1642691823421,0.00033626,43191.0,43190.0,0.376106]
[1642691823623,0.00033626,43191.0,43190.0,0.03889461]
[1642691823850,6.876e-05,43194.0,43190.0,0.06891167]
[1642691824050,6.876e-05,43194.0,43190.0,0.057906]
[1642691824255,6.876e-05,43194.0,43191.0,0.09228543]
[1642691824549,6.876e-05,43194.0,43192.0,0.69384089]
[1642691824749,6.876e-05,43194.0,43190.0,0.2356196]
[1642691824750,0.08024522,43191.0,43190.0,0.48396796]
[1642691825550,0.08024522,43191.0,43190.0,0.47996796]
[1642691825752,0.08024522,43191.0,43190.0,0.85607396]
[1642691826154,0.08224522,43191.0,43190.0,0.85907396]
[1642691826355,0.08224522,43191.0,43190.0,0.48296796]
[1642691826959,0.08224522,43191.0,43190.0,0.060906]
[1642691827502,0.19790196,43191.0,43183.0,0.115849]
[1642691827702,0.68793785,43186.0,43184.0,0.5]
[1642691827899,0.68793785,43186.0,43184.0,0.50010314]
[1642691828100,0.68793785,43186.0,43185.0,8.595e-05]
[1642691828101,0.78793785,43186.0,43185.0,8.595e-05]
[1642691828299,0.78993785,43186.0,43185.0,8.595e-05]
[1642691828999,0.59260401,43186.0,43185.0,8.595e-05]
[1642691829198,0.57494218,43186.0,43185.0,2.43e-06]
[1642691829399,0.68306713,43186.0,43185.0,2.43e-06]
[1642691829797,0.99751741,43186.0,43185.0,2.43e-06]
[1642691830197,1.00451741,43186.0,43185.0,0.00200243]
[1642691830598,0.14713252,43185.0,43182.0,0.13200243]
[1642691830797,0.68796465,43184.0,43182.0,0.13200243]
[1642691830999,0.7980896,43184.0,43182.0,0.13200243]
[1642691831253,0.58967917,43183.0,43182.0,0.13200243]
[1642691831643,0.68796465,43184.0,43182.0,0.13200243]
[1642691832044,0.69988057,43183.0,43182.0,0.13200243]
[1642691832244,0.69988057,43183.0,43182.0,0.13400243]
[1642691832445,0.11019891,43183.0,43182.0,0.13400243]
[1642691832745,0.58969724,43183.0,43182.0,0.13400243]
[1642691833445,0.97732592,43183.0,43182.0,0.13400243]
[1642691833647,0.11020888,43183.0,43182.0,0.13400243]
[1642691833844,0.58326729,43183.0,43182.0,0.13400243]
[1642691834046,1.09132174,43183.0,43182.0,0.13400243]
[1642691834244,1.09132174,43183.0,43182.0,0.13600243]
[1642691834245,1.09732174,43183.0,43182.0,0.13600243]
[1642691834444,0.89836444,43183.0,43182.0,0.13600243]
[1642691834644,0.89836444,43183.0,43180.0,0.027]
[1642691834846,0.00399582,43177.0,43175.0,0.00510839]
[1642691835098,0.00399582,43177.0,43174.0,0.00428695]
[1642691835299,0.00399582,43177.0,43165.0,0.00126167]
[1642691835501,1.63964245,43176.0,43175.0,0.0001719]
[1642691835703,1.7955417,43176.0,43175.0,0.0001719]
[1642691835899,1.8955417,43176.0,43167.0,0.00030942]
[1642691836097,0.7455417,43176.0,43168.0,0.234849]
[1642691836299,0.7455417,43176.0,43169.0,0.00632693]
[1642691836598,0.58964245,43176.0,43170.0,0.00025785]
[1642691836998,0.58964245,43176.0,43170.0,0.057945]
[1642691837199,0.58964245,43176.0,43170.0,0.05820285]
[1642691837399,0.58964245,43176.0,43171.0,0.00024066]
[1642691837799,0.58964245,43176.0,43171.0,0.00143128]
[1642691838001,0.68964245,43176.0,43171.0,0.00143128]
[1642691838203,0.68964245,43176.0,43172.0,0.00022347]
[1642691838204,0.58964245,43174.0,43172.0,0.00022347]
[1642691838400,1.06206122,43176.0,43172.0,0.00022347]
[1642691838401,1.9494723,43173.0,43172.0,0.00022347]
[1642691838600,2.0379023,43173.0,43172.0,0.00022347]
[1642691838841,2.1479282,43173.0,43172.0,0.00022347]
[1642691839041,2.35126947,43173.0,43172.0,0.00022347]
[1642691839244,0.90316152,43173.0,43172.0,0.00022347]
[1642691839443,0.58979435,43173.0,43172.0,0.00022347]
[1642691839642,0.58979435,43173.0,43172.0,0.23022347]
[1642691839840,0.58979435,43173.0,43172.0,0.65022347]
[1642691840042,0.00399582,43177.0,43172.0,0.64522347]
[1642691840246,0.00399582,43177.0,43172.0,0.64722347]
[1642691840247,0.004,43173.0,43172.0,0.64722347]
[1642691840542,0.004,43173.0,43172.0,0.64222347]
[1642691841341,0.5937787,43173.0,43172.0,0.64222347]
[1642691841542,0.5897787,43173.0,43172.0,0.64022347]
[1642691841744,0.5897787,43174.0,43172.0,0.64022347]
[1642691841943,0.5897787,43173.0,43172.0,0.64022347]
[1642691842247,0.19216668,43173.0,43172.0,0.22222347]
[1642691842497,0.64216668,43173.0,43172.0,0.22222347]
[1642691842700,1.40928947,43173.0,43172.0,0.22222347]
[1642691842900,1.49834947,43173.0,43172.0,0.22222347]
[1642691843204,1.4944596,43171.0,43170.0,0.00119063]
[1642691843401,2.64472787,43171.0,43170.0,0.00119063]
[1642691843599,2.85463395,43171.0,43163.0,0.42]
[1642691843798,0.057961,43169.0,43168.0,0.00119067]
[1642691843999,0.39632006,43169.0,43168.0,0.00119067]
[1642691844204,1.389472,43169.0,43168.0,0.00119067]
[1642691844401,0.11157,43169.0,43168.0,0.00119067]
[1642691844599,0.41937544,43169.0,43168.0,0.00119067]
[1642691844800,0.1961879,43165.0,43153.0,0.05795827]
[1642691845001,0.10008595,43169.0,43166.0,0.00119071]
[1642691845201,6.876e-05,43168.0,43166.0,0.00119071]
[1642691845401,0.4120893,43168.0,43166.0,0.00119071]
[1642691845600,0.51202054,43168.0,43166.0,0.00119071]
[1642691846003,0.51202054,43168.0,43159.0,8.595e-05]
[1642691846004,0.63227257,43168.0,43159.0,8.595e-05]
[1642691846247,1.03922828,43167.0,43166.0,0.004]
[1642691846454,1.24186923,43167.0,43166.0,0.004]
[1642691846647,1.34186923,43167.0,43166.0,0.004]
[1642691847549,1.34186923,43167.0,43160.0,0.00119087]
[1642691847948,0.44186923,43167.0,43160.0,0.00129612]
[1642691848151,0.057958,43165.0,43160.0,0.00129612]
[1642691848349,0.057958,43165.0,43160.0,0.00510525]
[1642691848557,0.01157,43164.0,43160.0,0.00510525]
[1642691848752,0.115933,43163.0,43160.0,0.00619085]
[1642691849149,0.115933,43163.0,43160.0,0.00119085]
[1642691849551,0.115933,43163.0,43159.0,8.595e-05]
[1642691849752,0.23922828,43167.0,43159.0,0.00127679]
[1642691849997,0.05,43165.0,43159.0,0.00119084]
[1642691850196,0.05,43165.0,43160.0,6.876e-05]
[1642691850596,0.05,43165.0,43160.0,0.00017401]
[1642691850796,0.05,43165.0,43160.0,6.876e-05]
[1642691850997,0.05,43165.0,43160.0,0.11727412]
[1642691851199,0.05,43165.0,43160.0,0.11716887]
[1642691851396,0.05,43165.0,43160.0,0.11727412]
[1642691851795,0.05,43165.0,43160.0,0.11716887]
[1642691851996,0.05,43165.0,43160.0,0.11597803]
[1642691852195,0.051,43165.0,43160.0,0.12116887]
[1642691852396,0.051,43165.0,43161.0,0.00774008]
[1642691852596,0.28719054,43165.0,43161.0,0.00010525]
[1642691852796,0.28719054,43165.0,43160.0,0.0632176]
[1642691853201,0.28719054,43165.0,43160.0,0.06202676]
[1642691853397,0.28719054,43165.0,43160.0,0.0052596]
[1642691853398,0.34514954,43165.0,43160.0,0.0052596]
[1642691853598,0.38619054,43165.0,43160.0,0.0012596]
[1642691853855,0.55852045,43165.0,43160.0,0.0012596]
[1642691854351,0.56152045,43165.0,43160.0,6.876e-05]
[1642691854547,0.115929,43164.0,43160.0,6.876e-05]
[1642691854746,0.115929,43164.0,43160.0,0.00113084]
[1642691855348,0.327711,43163.0,43160.0,0.00113084]
[1642691855551,0.13678322,43162.0,43160.0,0.00113084]
[1642691855747,0.857968,43160.0,43159.0,0.00010525]
[1642691855948,0.857968,43160.0,43158.0,0.00010314]
[1642691856146,0.957968,43160.0,43159.0,0.03965187]
[1642691856348,1.25,43159.0,43155.0,6e-05]
[1642691856553,1.465944,43159.0,43155.0,6e-05]
[1642691856949,1.465944,43159.0,43155.0,0.00090919]
[1642691857249,0.15543371,43158.0,43155.0,0.00090919]
[1642691857500,1.307986,43154.0,43153.0,0.00010525]
[1642691857697,1.307986,43154.0,43152.0,0.00010525]
[1642691857902,1.407986,43154.0,43151.0,0.44120525]
[1642691858296,1.410986,43154.0,43152.0,0.00010314]
[1642691859201,0.1054296,43153.0,43152.0,0.00010314]
[1642691859399,1.69398865,43153.0,43152.0,0.00010314]
[1642691859601,1.80555865,43153.0,43152.0,0.00010314]
[1642691860000,1.4669996,43153.0,43152.0,0.00010314]
[1642691860200,1.25,43152.0,43150.0,0.09570839]
[1642691860400,1.54992997,43151.0,43150.0,0.09570839]
[1642691860601,1.75535957,43151.0,43150.0,0.09570839]
[1642691860900,1.25,43150.0,43148.0,0.00010528]
[1642691861101,1.25,43150.0,43147.0,0.01015879]
[1642691861102,1.35,43150.0,43147.0,0.01015879]
[1642691861547,1.35,43150.0,43148.0,6.876e-05]
[1642691861751,1.107985,43149.0,43148.0,6.876e-05]
[1642691862148,1.71922174,43149.0,43148.0,6.876e-05]
[1642691862352,1.25,43148.0,43147.0,0.00522755]
[1642691862649,1.64592086,43148.0,43147.0,0.00512227]
[1642691862849,1.34705408,43148.0,43147.0,0.00512227]
[1642691863050,0.1,43148.0,43147.0,0.00512227]
[1642691863449,0.057985,43149.0,43147.0,0.00012227]
[1642691864353,0.058985,43149.0,43147.0,0.00012227]
[1642691864550,0.87374776,43148.0,43147.0,0.00012227]
[1642691864851,1.42374776,43148.0,43147.0,5.294e-05]
[1642691865101,0.97374776,43148.0,43147.0,5.294e-05]
[1642691865302,0.1,43148.0,43147.0,5.294e-05]
[1642691865506,0.28395897,43151.0,43147.0,5.294e-05]
[1642691865700,0.1,43151.0,43147.0,5.294e-05]
[1642691866304,0.103,43151.0,43147.0,0.05802894]
[1642691866502,0.103,43151.0,43148.0,0.03580315]
[1642691866803,0.003,43151.0,43145.0,0.25598024]
[1642691867005,0.003,43151.0,43144.0,0.00129263]
[1642691867202,0.003,43151.0,43141.0,0.00629674]
[1642691867403,0.003,43151.0,43140.0,1.24476507]
[1642691867404,0.003,43151.0,43146.0,0.11144063]
[1642691867602,0.01157,43154.0,43147.0,0.04537495]
[1642691867802,0.01157,43154.0,43142.0,0.00010315]
[1642691867803,0.01157,43154.0,43148.0,0.04673897]
[1642691868004,0.01157,43154.0,43142.0,0.00010315]
[1642691868005,0.41595911,43153.0,43149.0,0.04388136]
[1642691868205,0.41595911,43153.0,43147.0,0.057976]
[1642691868206,0.52107368,43153.0,43147.0,0.057976]
[1642691868408,6.876e-05,43152.0,43148.0,0.001]
[1642691869553,0.3714583,43151.0,43143.0,0.115954]
[1642691869750,0.3714583,43151.0,43143.0,0.165954]
[1642691869951,0.05798,43149.0,43144.0,6.877e-05]
[1642691870152,0.05798,43149.0,43145.0,0.00084711]
[1642691870752,0.96873695,43146.0,43145.0,0.00084711]
[1642691870953,0.36873695,43146.0,43145.0,0.00084711]
[1642691871151,0.52672295,43146.0,43144.0,6.877e-05]
[1642691871353,0.057986,43146.0,43143.0,0.00193495]
[1642691871552,0.057986,43146.0,43143.0,0.00119116]
[1642691872155,0.057986,43146.0,43143.0,0.05917316]
[1642691872354,0.22797854,43146.0,43143.0,0.059982]
[1642691872794,0.22797854,43146.0,43143.0,0.002]
[1642691873194,0.22797854,43146.0,43143.0,0.00210529]
[1642691873597,0.22697854,43146.0,43143.0,0.00010529]
[1642691873797,0.01157,43144.0,43142.0,0.00119118]
[1642691874002,1.30921919,43143.0,43142.0,0.00119118]
[1642691874399,1.30921919,43143.0,43134.0,0.00106209]
[1642691874400,1.25,43142.0,43134.0,0.00106209]
[1642691874598,1.57294222,43142.0,43134.0,0.00106209]
[1642691874801,0.01157,43141.0,43135.0,0.00015471]
[1642691874996,0.01157,43141.0,43135.0,5.247e-05]
[1642691874997,1.35111513,43136.0,43135.0,5.247e-05]
[1642691875199,1.358,43136.0,43130.0,0.00013842]
[1642691875398,1.2,43136.0,43130.0,0.00723753]
[1642691875598,0.1,43142.0,43131.0,0.00610788]
[1642691875800,0.001,43144.0,43132.0,0.057996]
[1642691875997,0.001,43144.0,43134.0,0.00126181]
[1642691876257,0.00035919,43139.0,43134.0,0.00126181]
[1642691876650,0.2079048,43139.0,43135.0,0.115967]
[1642691876852,0.00035919,43139.0,43135.0,0.115967]
[1642691877053,0.00035919,43139.0,43136.0,0.05]
[1642691877253,8.505e-05,43143.0,43137.0,0.00652582]
[1642691877461,8.505e-05,43143.0,43138.0,0.00797076]
[1642691877462,0.00035919,43139.0,43138.0,0.00797076]
[1642691877653,0.00035919,43139.0,43138.0,0.0061054]
[1642691877852,0.00035919,43139.0,43138.0,1.45526303]
[1642691878051,0.00035919,43139.0,43138.0,1.51080744]
[1642691878250,0.00035919,43139.0,43138.0,1.56028059]
[1642691878453,0.003,43139.0,43138.0,0.3732431]
[1642691879155,0.003,43139.0,43138.0,0.1]
[1642691879350,0.003,43139.0,43137.0,0.05808831]
[1642691879549,6.786e-05,43142.0,43137.0,0.057983]
[1642691879751,0.00048816,43141.0,43137.0,0.05808831]
[1642691880400,0.00248816,43141.0,43137.0,0.05808831]
[1642691880596,0.00248816,43141.0,43138.0,0.05797985]
[1642691880796,0.002,43141.0,43140.0,0.17130065]
[1642691880998,6.786e-05,43142.0,43140.0,0.37359398]
[1642691881197,0.00048817,43141.0,43140.0,1.29]
[1642691881396,0.00048817,43141.0,43140.0,0.30707738]
[1642691881601,0.00048817,43141.0,43140.0,0.1]
[1642691881797,0.00048817,43141.0,43139.0,0.00010531]
[1642691882000,6.786e-05,43142.0,43138.0,0.10808516]
[1642691882400,0.001,43141.0,43139.0,0.006]
[1642691882603,0.001,43141.0,43140.0,1.076106]
[1642691882802,0.001,43141.0,43140.0,1.666106]
[1642691883004,0.001,43141.0,43140.0,0.476106]
[1642691883299,0.001,43141.0,43140.0,0.05]
[1642691883500,6.786e-05,43142.0,43139.0,0.00010531]
[1642691883744,6.786e-05,43142.0,43138.0,0.37103378]
[1642691884145,6.786e-05,43142.0,43140.0,0.00038953]
[1642691884746,0.00054917,43142.0,43140.0,0.00038953]
[1642691885747,6.786e-05,43142.0,43140.0,0.00038953]
[1642691886349,6.786e-05,43142.0,43140.0,0.00438953]
[1642691887148,0.56686404,43147.0,43142.0,0.057978]
[1642691887349,0.35717349,43148.0,43143.0,0.05797744]
[1642691887590,0.35717349,43148.0,43143.0,0.01344375]
[1642691887591,6.877e-05,43146.0,43143.0,0.01344375]
[1642691887797,6.877e-05,43146.0,43143.0,0.00010531]
[1642691887992,6.877e-05,43146.0,43142.0,0.157978]
[1642691888199,0.00135121,43146.0,43143.0,0.00010531]
[1642691888397,0.75167344,43145.0,43143.0,0.001]
[1642691888594,1.62390337,43144.0,43143.0,0.00017954]
[1642691889094,1.82290136,43144.0,43143.0,0.00017954]
[1642691889293,1.99831654,43144.0,43143.0,0.00017954]
[1642691889494,2.03158972,43144.0,43143.0,0.00017954]
[1642691889692,2.03158972,43144.0,43140.0,0.04891753]
[1642691889894,0.37390337,43143.0,43142.0,0.03437839]
[1642691890096,0.37390337,43143.0,43131.0,0.00680994]
[1642691890097,0.57290136,43143.0,43131.0,0.00680994]
[1642691890396,0.57290136,43143.0,43132.0,0.00027721]
[1642691890397,0.20573188,43134.0,43132.0,0.00027721]
[1642691890600,0.9,43133.0,43132.0,0.0001719]
[1642691890895,0.9,43133.0,43131.0,0.00010531]
[1642691891092,0.9,43133.0,43128.0,0.00016531]
[1642691891354,1.058005,43133.0,43132.0,0.0001719]
[1642691891555,1.0,43133.0,43132.0,0.0001719]
[1642691891758,1.35,43133.0,43132.0,0.0001719]
[1642691892355,1.86981803,43133.0,43130.0,0.00020628]
[1642691892556,0.79009971,43132.0,43130.0,0.00020628]
[1642691892754,1.51984927,43131.0,43130.0,0.00020628]
[1642691892956,1.51984927,43131.0,43129.0,0.00010531]
[1642691892957,1.51984927,43131.0,43129.0,0.0014149]
[1642691893154,1.29902232,43131.0,43130.0,0.00020628]
[1642691893556,1.2,43131.0,43130.0,0.00020628]
[1642691893756,2.20068702,43131.0,43130.0,0.00020628]
[1642691893955,1.2990124,43131.0,43130.0,0.00020628]
[1642691894153,1.2990124,43131.0,43130.0,0.00044698]
[1642691894354,1.9882265,43131.0,43130.0,0.00044698]
[1642691894555,1.3000124,43131.0,43130.0,0.00044698]
[1642691894756,1.4615824,43131.0,43130.0,0.00044698]
[1642691895395,2.14977086,43131.0,43130.0,0.00044698]
[1642691895599,2.14877086,43131.0,43130.0,0.00044698]
[1642691895796,1.4605824,43131.0,43130.0,0.00044698]
[1642691896200,2.14877086,43131.0,43130.0,0.00044698]
[1642691896398,2.15077086,43131.0,43130.0,0.00044698]
[1642691896600,1.25,43130.0,43128.0,0.00119833]
[1642691896801,1.93825091,43130.0,43128.0,0.00119833]
[1642691897104,1.4172852,43129.0,43128.0,0.00119833]
[1642691897400,2.21600727,43129.0,43123.0,0.00010532]
[1642691897602,0.058024,43118.0,43114.0,0.00122093]
[1642691898003,0.00230752,43119.0,43115.0,0.00563113]
[1642691898206,0.00230752,43119.0,43118.0,1.388407]
[1642691898404,0.00230752,43119.0,43118.0,1.5979757]
[1642691898601,0.00230752,43119.0,43118.0,1.71539742]
[1642691898851,0.00230752,43119.0,43118.0,2.96131729]
[1642691899153,0.00230752,43119.0,43118.0,1.00245335]
[1642691899350,0.00230752,43119.0,43118.0,0.80143534]
[1642691899551,0.00230752,43119.0,43118.0,0.10143534]
[1642691899754,0.00230752,43119.0,43118.0,0.00020628]
[1642691900554,0.00330752,43119.0,43118.0,0.00020628]
[1642691901552,0.00230752,43119.0,43118.0,0.00020628]
[1642691901751,0.00230752,43119.0,43118.0,0.55020628]
[1642691901952,0.00230752,43119.0,43118.0,0.00020628]
[1642691902352,0.00330752,43119.0,43118.0,0.00020628]
[1642691902803,0.47136311,43124.0,43118.0,0.00020628]
[1642691902804,0.11061282,43124.0,43118.0,0.00020628]
[1642691903099,0.01849,43121.0,43118.0,0.00020628]
[1642691903303,0.66646035,43121.0,43118.0,0.00020628]
[1642691903602,1.12041703,43119.0,43118.0,0.00020628]
[1642691904000,0.85,43119.0,43118.0,0.00020628]
[1642691904298,0.85,43119.0,43118.0,0.00033002]
[1642691904500,0.85,43119.0,43117.0,5.15995755]
[1642691904501,1.15,43118.0,43117.0,5.15995755]
[1642691904700,1.91829677,43118.0,43117.0,5.15995755]
[1642691904899,1.42898542,43118.0,43117.0,5.15995755]
[1642691905098,1.42898542,43118.0,43117.0,4.69566355]
[1642691905298,1.58970366,43118.0,43117.0,4.69066355]
[1642691905500,2.17862534,43118.0,43117.0,4.69066355]
[1642691905700,2.58407111,43118.0,43117.0,4.22637055]
[1642691905904,2.42082569,43118.0,43117.0,4.22637055]
[1642691906098,2.42082569,43118.0,43117.0,3.76207855]
[1642691906348,2.42182569,43118.0,43117.0,3.76207855]
[1642691906647,1.83290401,43118.0,43117.0,3.76207855]
[1642691907046,1.81716401,43118.0,43117.0,3.76207855]
[1642691907246,0.11257,43118.0,43117.0,3.81207855]
[1642691907452,0.11257,43118.0,43117.0,2.23463408]
[1642691907645,0.58892168,43120.0,43117.0,2.28463408]
[1642691907847,1.06157,43118.0,43117.0,2.33463408]
[1642691908248,0.01157,43118.0,43117.0,2.33463408]
[1642691908449,0.31949332,43118.0,43117.0,2.33463408]
[1642691908645,0.001,43118.0,43117.0,2.33463408]
[1642691909047,0.001,43118.0,43117.0,2.33472617]
[1642691909246,0.001,43118.0,43117.0,2.32972617]
[1642691909648,0.058018,43121.0,43117.0,2.32972617]
[1642691910299,0.058018,43121.0,43119.0,0.04205111]
[1642691910502,0.005,43121.0,43119.0,0.04205111]
[1642691910898,0.005,43121.0,43119.0,0.04043797]
[1642691911702,0.0004638,43126.0,43119.0,1.28043797]